[Event "*** Titled Tuesday Blitz"]
[Site "Chess.com"]
[Date "2020.02.04"]
[Round "1"]
[White "Gabrielian_Artur"]
[Black "MishkaFighter"]
[Result "1/2-1/2"]
[WhiteElo "2778"]
[BlackElo "2439"]
[TimeControl "180+2"]
[EndTime "13:08:28 PST"]
[Termination "Game drawn by repetition"]

1. e4 {[%clk 0:03:00.7]} 1... c5 {[%clk 0:03:00.4]} 2. Nf3 {[%clk 0:02:57.7]}
2... e6 {[%clk 0:03:01.1]} 3. g3 {[%clk 0:02:58]} 3... Nf6 {[%clk 0:02:57.3]} 4.
Qe2 {[%clk 0:02:58]} 4... Nc6 {[%clk 0:02:56.6]} 5. Bg2 {[%clk 0:02:58.9]} 5...
d5 {[%clk 0:02:57.8]} 6. exd5 {[%clk 0:02:59.1]} 6... Nxd5 {[%clk 0:02:58.8]} 7.
O-O {[%clk 0:03:00.2]} 7... Be7 {[%clk 0:02:59.7]} 8. Rd1 {[%clk 0:03:01.3]}
8... O-O {[%clk 0:02:51]} 9. d4 {[%clk 0:03:00.6]} 9... Qb6 {[%clk 0:02:45.1]}
10. c4 {[%clk 0:02:59.8]} 10... Nf6 {[%clk 0:02:43.7]} 11. d5 {[%clk 0:03:00.4]}
11... Nd4 {[%clk 0:02:32.6]} 12. Nxd4 {[%clk 0:02:59.8]} 12... cxd4 {[%clk
0:02:34.5]} 13. Na3 {[%clk 0:02:50.5]} 13... Re8 {[%clk 0:02:26.7]} 14. Bg5
{[%clk 0:02:34.8]} 14... exd5 {[%clk 0:02:20.5]} 15. Bxf6 {[%clk 0:02:32.9]}
15... Qxf6 {[%clk 0:02:21.1]} 16. cxd5 {[%clk 0:02:32.9]} 16... Bf5 {[%clk
0:02:17.3]} 17. Qd2 {[%clk 0:02:30.2]} 17... Bc5 {[%clk 0:02:04.7]} 18. Nc4
{[%clk 0:02:14.9]} 18... d3 {[%clk 0:01:59.2]} 19. Re1 {[%clk 0:02:15.3]} 19...
b5 {[%clk 0:01:44.4]} 20. Ne3 {[%clk 0:02:15.7]} 20... Bxe3 {[%clk 0:01:43.4]}
21. Rxe3 {[%clk 0:02:16]} 21... Rxe3 {[%clk 0:01:44.1]} 22. fxe3 {[%clk
0:02:17.3]} 22... Qe5 {[%clk 0:01:36.4]} 23. Re1 {[%clk 0:02:16.4]} 23... Be4
{[%clk 0:01:28.5]} 24. Bxe4 {[%clk 0:01:59.7]} 24... Qxe4 {[%clk 0:01:30.4]} 25.
Rd1 {[%clk 0:02:00.9]} 25... Qxd5 {[%clk 0:01:28.8]} 26. Qxd3 {[%clk 0:02:02.2]}
26... Qg5 {[%clk 0:01:23]} 27. e4 {[%clk 0:01:58.3]} 27... Re8 {[%clk
0:01:20.7]} 28. Kg2 {[%clk 0:01:58.1]} 28... h5 {[%clk 0:01:19.4]} 29. h4 {[%clk
0:01:55.2]} 29... Qe5 {[%clk 0:01:18.4]} 30. b3 {[%clk 0:01:47.4]} 30... Qxe4+
{[%clk 0:01:13]} 31. Qxe4 {[%clk 0:01:48.6]} 31... Rxe4 {[%clk 0:01:14.9]} 32.
Rd5 {[%clk 0:01:49.6]} 32... Re2+ {[%clk 0:01:05]} 33. Kf3 {[%clk 0:01:50.7]}
33... Rxa2 {[%clk 0:01:06.9]} 34. Rxh5 {[%clk 0:01:50.7]} 34... a6 {[%clk
0:01:04.4]} 35. Rc5 {[%clk 0:01:47.9]} 35... Ra3 {[%clk 0:01:03.8]} 36. Rc3
{[%clk 0:01:46.7]} 36... a5 {[%clk 0:01:01.5]} 37. Kf4 {[%clk 0:01:47.5]} 37...
g6 {[%clk 0:00:57.2]} 38. g4 {[%clk 0:01:48]} 38... Kg7 {[%clk 0:00:57.6]} 39.
h5 {[%clk 0:01:49.1]} 39... a4 {[%clk 0:00:53.8]} 40. Kg5 {[%clk 0:01:40.7]}
40... gxh5 {[%clk 0:00:45.7]} 41. gxh5 {[%clk 0:01:40.9]} 41... Rxb3 {[%clk
0:00:45.5]} 42. h6+ {[%clk 0:01:42.3]} 42... Kh7 {[%clk 0:00:42.1]} 43. Rc7
{[%clk 0:01:40.8]} 43... Rg3+ {[%clk 0:00:26.1]} 44. Kf4 {[%clk 0:01:41.2]}
44... Rb3 {[%clk 0:00:26.6]} 45. Kg5 {[%clk 0:01:40.8]} 45... a3 {[%clk
0:00:21.2]} 46. Rxf7+ {[%clk 0:01:41.2]} 46... Kg8 {[%clk 0:00:22.9]} 47. Rg7+
{[%clk 0:01:41.9]} 47... Kh8 {[%clk 0:00:23.5]} 48. Ra7 {[%clk 0:01:43.1]} 48...
Rg3+ {[%clk 0:00:16.2]} 49. Kh5 {[%clk 0:01:41.8]} 49... b4 {[%clk 0:00:14.2]}
50. Ra8+ {[%clk 0:01:41.5]} 50... Rg8 {[%clk 0:00:15.5]} 51. Ra7 {[%clk
0:01:42.8]} 51... Rb8 {[%clk 0:00:15.4]} 52. Kg6 {[%clk 0:01:38.7]} 52... Rb6+
{[%clk 0:00:16.3]} 53. Kg5 {[%clk 0:01:40.1]} 53... Rb5+ {[%clk 0:00:10.8]} 54.
Kg6 {[%clk 0:01:40.8]} 54... Rb6+ {[%clk 0:00:12.2]} 55. Kg5 {[%clk 0:01:42.3]}
55... Rb5+ {[%clk 0:00:07.9]} 56. Kf6 {[%clk 0:01:43.3]} 56... Rb6+ {[%clk
0:00:09.4]} 57. Kg5 {[%clk 0:01:44.4]} 1/2-1/2

[Event "*** Titled Tuesday Blitz"]
[Site "Chess.com"]
[Date "2020.02.04"]
[Round "1"]
[White "Kislov_Oleg"]
[Black "Duhless"]
[Result "0-1"]
[WhiteElo "2512"]
[BlackElo "3054"]
[TimeControl "180+2"]
[EndTime "13:08:32 PST"]
[Termination "Duhless won by checkmate"]

1. e4 {[%clk 0:03:00.3]} 1... c5 {[%clk 0:02:59.9]} 2. Nf3 {[%clk 0:03:01.1]}
2... Nc6 {[%clk 0:02:59.3]} 3. c3 {[%clk 0:03:02.3]} 3... Nf6 {[%clk 0:02:57]}
4. e5 {[%clk 0:03:03.5]} 4... Nd5 {[%clk 0:02:58.2]} 5. d4 {[%clk 0:03:05.2]}
5... cxd4 {[%clk 0:02:59.3]} 6. cxd4 {[%clk 0:03:07.1]} 6... d6 {[%clk
0:03:00.6]} 7. Bc4 {[%clk 0:03:05.9]} 7... Nb6 {[%clk 0:03:00.3]} 8. Bb5 {[%clk
0:03:07]} 8... dxe5 {[%clk 0:03:00.4]} 9. Nxe5 {[%clk 0:03:07.7]} 9... Bd7
{[%clk 0:03:01.5]} 10. Nxd7 {[%clk 0:03:08.3]} 10... Qxd7 {[%clk 0:03:01.9]} 11.
Nc3 {[%clk 0:03:09]} 11... e6 {[%clk 0:03:01.2]} 12. Qg4 {[%clk 0:03:06.3]}
12... a6 {[%clk 0:02:32.5]} 13. Bxc6 {[%clk 0:03:05.7]} 13... Qxc6 {[%clk
0:02:31.2]} 14. O-O {[%clk 0:03:03.8]} 14... h5 {[%clk 0:02:31.5]} 15. Qg5
{[%clk 0:02:48.9]} 15... Rd8 {[%clk 0:02:30.4]} 16. Be3 {[%clk 0:02:45.2]} 16...
Nd5 {[%clk 0:02:30.1]} 17. Ne4 {[%clk 0:02:40.1]} 17... Ne7 {[%clk 0:02:20.6]}
18. f3 {[%clk 0:02:27.8]} 18... Nf5 {[%clk 0:02:18.4]} 19. Bf2 {[%clk
0:02:28.2]} 19... Be7 {[%clk 0:02:18.3]} 20. Qf4 {[%clk 0:02:26.2]} 20... Nxd4
{[%clk 0:02:13.9]} 21. Kh1 {[%clk 0:02:01.4]} 21... Nf5 {[%clk 0:01:54.9]} 22.
Rac1 {[%clk 0:01:59.2]} 22... Qb5 {[%clk 0:01:55.8]} 23. g4 {[%clk 0:01:30.1]}
23... hxg4 {[%clk 0:01:39.9]} 24. fxg4 {[%clk 0:01:30.2]} 24... g5 {[%clk
0:01:33.3]} 25. Qf3 {[%clk 0:01:19.3]} 25... Rd3 {[%clk 0:00:53.2]} 26. Qe2
{[%clk 0:00:43.3]} 26... Rxh2+ {[%clk 0:00:50.2]} 27. Kxh2 {[%clk 0:00:40.5]}
27... Rh3+ {[%clk 0:00:50.7]} 28. Kxh3 {[%clk 0:00:41.4]} 28... Qxe2 {[%clk
0:00:52.3]} 29. gxf5 {[%clk 0:00:42]} 29... g4+ {[%clk 0:00:38.9]} 30. Kh2
{[%clk 0:00:32.8]} 30... Qxe4 {[%clk 0:00:38.1]} 31. fxe6 {[%clk 0:00:32.2]}
31... fxe6 {[%clk 0:00:31.5]} 32. Bg3 {[%clk 0:00:33.1]} 32... Bd8 {[%clk
0:00:18.6]} 33. Rce1 {[%clk 0:00:29.1]} 33... Qd5 {[%clk 0:00:19.2]} 34. b3
{[%clk 0:00:21.2]} 34... Qh5+ {[%clk 0:00:20]} 35. Kg1 {[%clk 0:00:21.5]} 35...
Bb6+ {[%clk 0:00:20.7]} 36. Bf2 {[%clk 0:00:22.9]} 36... g3 {[%clk 0:00:19.2]}
37. Rxe6+ {[%clk 0:00:19.3]} 37... Kd7 {[%clk 0:00:20.4]} 38. Rxb6 {[%clk
0:00:09.3]} 38... Qh2# {[%clk 0:00:20.4]} 0-1

[Event "*** Titled Tuesday Blitz"]
[Site "Chess.com"]
[Date "2020.02.04"]
[Round "1"]
[White "PawnEatingZombie"]
[Black "Storne89"]
[Result "0-1"]
[WhiteElo "2304"]
[BlackElo "2642"]
[TimeControl "180+2"]
[EndTime "13:08:32 PST"]
[Termination "Storne89 won by resignation"]

1. d4 {[%clk 0:03:00.3]} 1... Nf6 {[%clk 0:03:00.3]} 2. c4 {[%clk 0:03:00.9]}
2... e6 {[%clk 0:03:01.7]} 3. Nc3 {[%clk 0:03:01.5]} 3... Bb4 {[%clk 0:03:02.8]}
4. Qc2 {[%clk 0:03:03.1]} 4... O-O {[%clk 0:03:02.9]} 5. e4 {[%clk 0:03:03.6]}
5... d6 {[%clk 0:02:53.2]} 6. Bd3 {[%clk 0:03:02.6]} 6... e5 {[%clk 0:02:53.4]}
7. a3 {[%clk 0:02:56.6]} 7... Bxc3+ {[%clk 0:02:44.6]} 8. bxc3 {[%clk
0:02:58.5]} 8... Nc6 {[%clk 0:02:46.1]} 9. Ne2 {[%clk 0:02:52.7]} 9... Nh5
{[%clk 0:01:54.3]} 10. O-O {[%clk 0:02:46.6]} 10... Bd7 {[%clk 0:01:55.1]} 11.
f4 {[%clk 0:02:41]} 11... exf4 {[%clk 0:01:55.7]} 12. Nxf4 {[%clk 0:02:38.3]}
12... Nxf4 {[%clk 0:01:56.7]} 13. Bxf4 {[%clk 0:02:39.4]} 13... h6 {[%clk
0:01:56.6]} 14. Qd2 {[%clk 0:02:25.4]} 14... Qh4 {[%clk 0:01:54.2]} 15. Rf3
{[%clk 0:02:18.1]} 15... f5 {[%clk 0:01:48.6]} 16. Bg3 {[%clk 0:01:57.4]} 16...
Qh5 {[%clk 0:01:44.4]} 17. Raf1 {[%clk 0:01:44.1]} 17... fxe4 {[%clk 0:01:45.1]}
18. Bxe4 {[%clk 0:01:44.8]} 18... Rxf3 {[%clk 0:01:36.5]} 19. Rxf3 {[%clk
0:01:40.9]} 19... Ne7 {[%clk 0:01:31.2]} 20. c5 {[%clk 0:01:36.9]} 20... d5
{[%clk 0:01:27.7]} 21. Bc2 {[%clk 0:01:29.1]} 21... c6 {[%clk 0:01:26.7]} 22.
Qd3 {[%clk 0:01:14.6]} 22... g6 {[%clk 0:01:26]} 23. Rf6 {[%clk 0:01:04]} 23...
Qg5 {[%clk 0:01:16.6]} 24. Be5 {[%clk 0:00:52.1]} 24... Bf5 {[%clk 0:01:08.2]}
25. Qe2 {[%clk 0:00:39.2]} 25... Qc1+ {[%clk 0:01:05.4]} 26. Bd1 {[%clk
0:00:40.3]} 26... Rf8 {[%clk 0:00:40.4]} 27. g4 {[%clk 0:00:37.3]} 27... Be4
{[%clk 0:00:37.3]} 28. Rxf8+ {[%clk 0:00:28.5]} 28... Kxf8 {[%clk 0:00:38.2]}
29. Qf1+ {[%clk 0:00:20.2]} 29... Ke8 {[%clk 0:00:39]} 30. h4 {[%clk 0:00:12.3]}
30... Qxc3 {[%clk 0:00:31.1]} 31. Be2 {[%clk 0:00:05.2]} 31... Qe3+ {[%clk
0:00:31.9]} 32. Qf2 {[%clk 0:00:05.8]} 32... Qc1+ {[%clk 0:00:24.1]} 33. Bf1
{[%clk 0:00:06.1]} 33... Bd3 {[%clk 0:00:21.4]} 34. Qf6 {[%clk 0:00:05.4]} 34...
Qxf1+ {[%clk 0:00:20.2]} 35. Qxf1 {[%clk 0:00:05.7]} 35... Bxf1 {[%clk
0:00:22.1]} 36. Kxf1 {[%clk 0:00:07.3]} 36... h5 {[%clk 0:00:23.6]} 37. gxh5
{[%clk 0:00:07.5]} 37... gxh5 {[%clk 0:00:24.5]} 38. Kf2 {[%clk 0:00:09]} 38...
Ng6 {[%clk 0:00:24.8]} 39. Bf6 {[%clk 0:00:09.2]} 39... Kd7 {[%clk 0:00:25.2]}
40. Kf3 {[%clk 0:00:09.6]} 40... Ke6 {[%clk 0:00:26.5]} 41. Bd8 {[%clk
0:00:08.6]} 41... Kf5 {[%clk 0:00:26]} 42. Be7 {[%clk 0:00:08.4]} 42... Nxe7
{[%clk 0:00:25.8]} 0-1

[Event "*** Titled Tuesday Blitz"]
[Site "Chess.com"]
[Date "2020.02.04"]
[Round "1"]
[White "jguerramzllo"]
[Black "AntonSmirnov"]
[Result "0-1"]
[WhiteElo "2470"]
[BlackElo "2897"]
[TimeControl "180+2"]
[EndTime "13:08:35 PST"]
[Termination "AntonSmirnov won by resignation"]

1. c4 {[%clk 0:03:01.9]} 1... e5 {[%clk 0:02:59.6]} 2. Nc3 {[%clk 0:03:02.2]}
2... Nf6 {[%clk 0:02:59.1]} 3. g3 {[%clk 0:03:02.9]} 3... c6 {[%clk 0:02:58.9]}
4. Bg2 {[%clk 0:02:45.7]} 4... d5 {[%clk 0:02:59]} 5. cxd5 {[%clk 0:02:46.4]}
5... cxd5 {[%clk 0:03:00.2]} 6. d3 {[%clk 0:02:47.9]} 6... d4 {[%clk 0:02:54.6]}
7. Ne4 {[%clk 0:02:47.9]} 7... Nxe4 {[%clk 0:02:53.1]} 8. Bxe4 {[%clk
0:02:48.9]} 8... Bb4+ {[%clk 0:02:54.2]} 9. Bd2 {[%clk 0:02:49.5]} 9... Bxd2+
{[%clk 0:02:55.5]} 10. Qxd2 {[%clk 0:02:50.4]} 10... O-O {[%clk 0:02:56.6]} 11.
Bg2 {[%clk 0:02:45.9]} 11... Nc6 {[%clk 0:02:56.5]} 12. Nf3 {[%clk 0:02:46]}
12... Be6 {[%clk 0:02:57.3]} 13. O-O {[%clk 0:02:44.9]} 13... Bd5 {[%clk
0:02:52.6]} 14. Rfc1 {[%clk 0:02:35.2]} 14... Qd6 {[%clk 0:02:52.9]} 15. a3
{[%clk 0:02:25.1]} 15... Rac8 {[%clk 0:02:51.6]} 16. b4 {[%clk 0:02:25.2]} 16...
Ne7 {[%clk 0:02:51.3]} 17. Rxc8 {[%clk 0:02:21.5]} 17... Rxc8 {[%clk 0:02:53.2]}
18. Rc1 {[%clk 0:02:22.6]} 18... Rxc1+ {[%clk 0:02:50.2]} 19. Qxc1 {[%clk
0:02:23.4]} 19... f6 {[%clk 0:02:51.3]} 20. Nd2 {[%clk 0:01:55.8]} 20... Bxg2
{[%clk 0:02:49.8]} 21. Kxg2 {[%clk 0:01:57.7]} 21... Qc6+ {[%clk 0:02:50.8]} 22.
Qxc6 {[%clk 0:01:57.5]} 22... Nxc6 {[%clk 0:02:52.7]} 23. Kf3 {[%clk 0:01:56.2]}
23... Kf7 {[%clk 0:02:52.8]} 24. e4 {[%clk 0:01:30.2]} 24... dxe3 {[%clk
0:02:40.8]} 25. fxe3 {[%clk 0:01:31.2]} 25... Ke6 {[%clk 0:02:41.7]} 26. Nb3
{[%clk 0:01:27.5]} 26... b6 {[%clk 0:02:42.3]} 27. e4 {[%clk 0:01:25.3]} 27...
Kd6 {[%clk 0:02:12.3]} 28. Ke3 {[%clk 0:01:17.1]} 28... h5 {[%clk 0:01:56.5]}
29. Kd2 {[%clk 0:00:47.5]} 29... g6 {[%clk 0:01:53.2]} 30. Kc3 {[%clk
0:00:46.4]} 30... f5 {[%clk 0:01:53.2]} 31. b5 {[%clk 0:00:33.5]} 31... Nd8
{[%clk 0:01:48.1]} 32. Kc4 {[%clk 0:00:31.6]} 32... Ne6 {[%clk 0:01:47.8]} 33.
a4 {[%clk 0:00:19.3]} 33... Ng5 {[%clk 0:01:34.8]} 34. Nd2 {[%clk 0:00:17.5]}
34... Ke6 {[%clk 0:01:21.2]} 35. Kb4 {[%clk 0:00:14.7]} 35... f4 {[%clk
0:01:11]} 36. gxf4 {[%clk 0:00:12.6]} 36... exf4 {[%clk 0:01:12.6]} 37. d4
{[%clk 0:00:14.2]} 37... Nh3 {[%clk 0:01:07]} 38. Kc4 {[%clk 0:00:14]} 38... g5
{[%clk 0:01:07.9]} 39. Kd3 {[%clk 0:00:12.9]} 39... g4 {[%clk 0:01:08.7]} 40.
d5+ {[%clk 0:00:13]} 40... Kf6 {[%clk 0:01:05.7]} 41. Nc4 {[%clk 0:00:13.4]}
41... g3 {[%clk 0:00:55.1]} 42. hxg3 {[%clk 0:00:14.6]} 42... fxg3 {[%clk
0:00:56.4]} 43. e5+ {[%clk 0:00:16.3]} 43... Ke7 {[%clk 0:00:54.4]} 44. Ne3
{[%clk 0:00:14.4]} 44... Nf4+ {[%clk 0:00:55.2]} 45. Ke4 {[%clk 0:00:15.5]}
45... g2 {[%clk 0:00:56.4]} 46. Nxg2 {[%clk 0:00:12.6]} 46... Nxg2 {[%clk
0:00:58.3]} 47. Kf5 {[%clk 0:00:13.5]} 47... Ne3+ {[%clk 0:00:59.2]} 48. Ke4
{[%clk 0:00:14.5]} 48... Nxd5 {[%clk 0:00:59.1]} 49. Kxd5 {[%clk 0:00:15.3]}
49... h4 {[%clk 0:01:00.6]} 50. Ke4 {[%clk 0:00:16.5]} 50... Ke6 {[%clk
0:01:01.3]} 51. Kf4 {[%clk 0:00:17.7]} 51... h3 {[%clk 0:01:02.7]} 52. Kg3
{[%clk 0:00:18.8]} 52... Kxe5 {[%clk 0:01:03.8]} 53. Kxh3 {[%clk 0:00:20]} 53...
Kd4 {[%clk 0:01:05.3]} 0-1

[Event "*** Titled Tuesday Blitz"]
[Site "Chess.com"]
[Date "2020.02.04"]
[Round "1"]
[White "biostatistician"]
[Black "colegiodemadrid"]
[Result "1-0"]
[WhiteElo "2698"]
[BlackElo "2370"]
[TimeControl "180+2"]
[EndTime "13:08:36 PST"]
[Termination "biostatistician won by resignation"]

1. d4 {[%clk 0:03:01.9]} 1... Nf6 {[%clk 0:02:59.7]} 2. Nf3 {[%clk 0:03:03.8]}
2... c5 {[%clk 0:02:59.5]} 3. d5 {[%clk 0:03:04]} 3... b5 {[%clk 0:02:59.2]} 4.
c4 {[%clk 0:03:05.9]} 4... g6 {[%clk 0:02:56]} 5. cxb5 {[%clk 0:03:04.7]} 5...
a6 {[%clk 0:02:56.6]} 6. b6 {[%clk 0:03:06.1]} 6... d6 {[%clk 0:02:57]} 7. Nc3
{[%clk 0:03:07.5]} 7... Nbd7 {[%clk 0:02:56.4]} 8. e4 {[%clk 0:03:08.3]} 8...
Bg7 {[%clk 0:02:56.8]} 9. Bd3 {[%clk 0:03:06.9]} 9... O-O {[%clk 0:02:55]} 10.
O-O {[%clk 0:03:07.7]} 10... Nxb6 {[%clk 0:02:56.2]} 11. h3 {[%clk 0:03:08.9]}
11... Rb8 {[%clk 0:02:46.7]} 12. Re1 {[%clk 0:03:08.8]} 12... Nfd7 {[%clk
0:02:46]} 13. Qe2 {[%clk 0:03:09.5]} 13... a5 {[%clk 0:02:33.6]} 14. Bg5 {[%clk
0:03:08.8]} 14... Na8 {[%clk 0:02:22]} 15. a4 {[%clk 0:03:04.1]} 15... Nc7
{[%clk 0:02:13.5]} 16. Rac1 {[%clk 0:03:01.8]} 16... Rb4 {[%clk 0:02:09.6]} 17.
Qc2 {[%clk 0:02:48.9]} 17... Ba6 {[%clk 0:02:01.3]} 18. Bxa6 {[%clk 0:02:49.2]}
18... Nxa6 {[%clk 0:02:02.3]} 19. Nb5 {[%clk 0:02:50.4]} 19... Rxb2 {[%clk
0:02:00.2]} 20. Qc4 {[%clk 0:02:43.2]} 20... Nb6 {[%clk 0:01:59.8]} 21. Qd3
{[%clk 0:02:33.9]} 21... Nb4 {[%clk 0:01:59.4]} 22. Qa3 {[%clk 0:02:30.1]} 22...
Ra2 {[%clk 0:01:57.5]} 23. Qe3 {[%clk 0:02:27]} 23... Nxa4 {[%clk 0:01:50.2]}
24. e5 {[%clk 0:02:26.5]} 24... Qd7 {[%clk 0:01:20.3]} 25. Nc3 {[%clk
0:01:52.4]} 25... Nxc3 {[%clk 0:01:20.3]} 26. Qxc3 {[%clk 0:01:50.8]} 26... Nxd5
{[%clk 0:01:20.1]} 27. Qc4 {[%clk 0:01:49.3]} 27... Nb4 {[%clk 0:01:17.1]} 28.
Rcd1 {[%clk 0:01:32.7]} 28... Rc2 {[%clk 0:01:05.9]} 29. Qh4 {[%clk 0:01:32.9]}
29... Re8 {[%clk 0:00:55.2]} 30. exd6 {[%clk 0:01:25.5]} 30... exd6 {[%clk
0:00:25.2]} 31. Rxe8+ {[%clk 0:01:27.4]} 31... Qxe8 {[%clk 0:00:18.1]} 32. Rxd6
{[%clk 0:01:28.8]} 32... f6 {[%clk 0:00:17.5]} 33. Bxf6 {[%clk 0:01:28.1]} 33...
Rc1+ {[%clk 0:00:15.8]} 34. Kh2 {[%clk 0:01:29.2]} 34... Qb8 {[%clk 0:00:16.4]}
35. Qf4 {[%clk 0:01:07.4]} 35... Bf8 {[%clk 0:00:15.8]} 36. Be5 {[%clk
0:01:04.8]} 36... Bxd6 {[%clk 0:00:10.7]} 37. Bxd6 {[%clk 0:01:06.7]} 37... Qd8
{[%clk 0:00:11.3]} 38. Ng5 {[%clk 0:01:03.7]} 38... Qe8 {[%clk 0:00:03.7]} 39.
Qxc1 {[%clk 0:01:02.7]} 39... Nd3 {[%clk 0:00:04.1]} 40. Qc4+ {[%clk 0:01:03.6]}
40... Kg7 {[%clk 0:00:05.4]} 41. Qxd3 {[%clk 0:01:01.2]} 1-0

[Event "*** Titled Tuesday Blitz"]
[Site "Chess.com"]
[Date "2020.02.04"]
[Round "1"]
[White "MartinCerveny"]
[Black "Walter_White_Poland"]
[Result "1-0"]
[WhiteElo "2585"]
[BlackElo "2240"]
[TimeControl "180+2"]
[EndTime "13:08:41 PST"]
[Termination "MartinCerveny won by resignation"]

1. d4 {[%clk 0:03:01.9]} 1... Nf6 {[%clk 0:02:57.9]} 2. c4 {[%clk 0:03:02.3]}
2... e6 {[%clk 0:02:57.2]} 3. Nc3 {[%clk 0:03:01.6]} 3... Bb4 {[%clk 0:02:56.8]}
4. e3 {[%clk 0:03:02.7]} 4... O-O {[%clk 0:02:48.7]} 5. Ne2 {[%clk 0:03:02.9]}
5... d5 {[%clk 0:02:47.1]} 6. a3 {[%clk 0:03:03.2]} 6... Be7 {[%clk 0:02:47.3]}
7. Ng3 {[%clk 0:03:01.7]} 7... c6 {[%clk 0:02:27.5]} 8. Bd2 {[%clk 0:02:58]}
8... b6 {[%clk 0:02:26.7]} 9. Rc1 {[%clk 0:02:54.8]} 9... a5 {[%clk 0:02:22.9]}
10. cxd5 {[%clk 0:02:53.4]} 10... cxd5 {[%clk 0:02:23.4]} 11. Nb5 {[%clk
0:02:49.1]} 11... Na6 {[%clk 0:02:23.1]} 12. Bd3 {[%clk 0:02:48.7]} 12... Bd7
{[%clk 0:02:22.6]} 13. O-O {[%clk 0:02:47]} 13... Rc8 {[%clk 0:02:22.6]} 14. Qe2
{[%clk 0:02:47.1]} 14... Rxc1 {[%clk 0:02:20.1]} 15. Rxc1 {[%clk 0:02:47.7]}
15... Qb8 {[%clk 0:02:20.9]} 16. f3 {[%clk 0:02:38.2]} 16... Rc8 {[%clk
0:02:21.3]} 17. Qd1 {[%clk 0:02:30.8]} 17... Nc7 {[%clk 0:02:10.4]} 18. Nxc7
{[%clk 0:02:20.5]} 18... Rxc7 {[%clk 0:02:11.4]} 19. Rc2 {[%clk 0:02:16.7]}
19... Rxc2 {[%clk 0:02:02.6]} 20. Qxc2 {[%clk 0:02:17.3]} 20... Qc8 {[%clk
0:02:03.6]} 21. Qd1 {[%clk 0:02:18]} 21... Qc7 {[%clk 0:01:35.3]} 22. Ne2 {[%clk
0:02:08.9]} 22... g6 {[%clk 0:01:07]} 23. Be1 {[%clk 0:02:04.7]} 23... Kg7
{[%clk 0:01:05.1]} 24. Bg3 {[%clk 0:02:04.4]} 24... Qc6 {[%clk 0:00:53.1]} 25.
Be5 {[%clk 0:01:59]} 25... Kg8 {[%clk 0:00:52]} 26. g4 {[%clk 0:01:58.8]} 26...
Ne8 {[%clk 0:00:51.6]} 27. Bg3 {[%clk 0:01:57.4]} 27... Nd6 {[%clk 0:00:47]} 28.
b3 {[%clk 0:01:51.5]} 28... Nb5 {[%clk 0:00:40.2]} 29. a4 {[%clk 0:01:52.1]}
29... Nc3 {[%clk 0:00:36.8]} 30. Nxc3 {[%clk 0:01:38.9]} 30... Qxc3 {[%clk
0:00:37.5]} 31. Kf1 {[%clk 0:01:33.1]} 31... f6 {[%clk 0:00:16.3]} 32. Ke2
{[%clk 0:01:29.3]} 32... Bb4 {[%clk 0:00:15.5]} 33. Qc2 {[%clk 0:01:25.1]} 33...
Kf7 {[%clk 0:00:14.8]} 34. Qxc3 {[%clk 0:01:23.5]} 34... Bxc3 {[%clk 0:00:15.9]}
35. Bc7 {[%clk 0:01:24]} 35... e5 {[%clk 0:00:15.3]} 36. Bxb6 {[%clk 0:01:22.1]}
36... f5 {[%clk 0:00:13.4]} 37. gxf5 {[%clk 0:01:21.3]} 37... Bxf5 {[%clk
0:00:14.3]} 38. dxe5 {[%clk 0:01:19.4]} 38... Ke6 {[%clk 0:00:12.8]} 39. Bd4
{[%clk 0:01:19.9]} 39... Bb4 {[%clk 0:00:11.2]} 40. Bxf5+ {[%clk 0:01:18.4]}
40... Kxf5 {[%clk 0:00:06.8]} 41. Kd3 {[%clk 0:01:19.4]} 41... g5 {[%clk
0:00:07.3]} 42. h3 {[%clk 0:01:16.2]} 42... h5 {[%clk 0:00:07.1]} 43. Bb2 {[%clk
0:01:11.9]} 43... Be1 {[%clk 0:00:07.1]} 44. Kd4 {[%clk 0:01:06.7]} 44... Bb4
{[%clk 0:00:07.2]} 45. Kxd5 {[%clk 0:01:07.2]} 1-0

[Event "*** Titled Tuesday Blitz"]
[Site "Chess.com"]
[Date "2020.02.04"]
[Round "1"]
[White "LuckIsMySkill"]
[Black "FrogMist"]
[Result "1-0"]
[WhiteElo "2766"]
[BlackElo "2415"]
[TimeControl "180+2"]
[EndTime "13:08:42 PST"]
[Termination "LuckIsMySkill won by checkmate"]

1. Nf3 {[%clk 0:02:59.2]} 1... Nf6 {[%clk 0:03:00.5]} 2. c4 {[%clk 0:02:59.7]}
2... e6 {[%clk 0:02:58.8]} 3. g3 {[%clk 0:03:00.9]} 3... d5 {[%clk 0:02:59.8]}
4. b3 {[%clk 0:03:01.5]} 4... Be7 {[%clk 0:02:56.9]} 5. Bb2 {[%clk 0:02:57.5]}
5... O-O {[%clk 0:02:57.5]} 6. Bg2 {[%clk 0:02:58.6]} 6... c5 {[%clk 0:02:58.5]}
7. O-O {[%clk 0:02:59.6]} 7... Nc6 {[%clk 0:02:58.3]} 8. Ne5 {[%clk 0:03:00.5]}
8... Nxe5 {[%clk 0:02:54]} 9. Bxe5 {[%clk 0:03:02.4]} 9... d4 {[%clk 0:02:42.6]}
10. d3 {[%clk 0:02:58.9]} 10... Nd7 {[%clk 0:02:38.7]} 11. Bf4 {[%clk
0:02:59.9]} 11... e5 {[%clk 0:02:39.6]} 12. Bc1 {[%clk 0:03:00]} 12... Qc7
{[%clk 0:02:36.9]} 13. b4 {[%clk 0:02:57.4]} 13... cxb4 {[%clk 0:02:35.8]} 14.
a3 {[%clk 0:02:58.6]} 14... b3 {[%clk 0:02:30.1]} 15. Nd2 {[%clk 0:02:55.7]}
15... Rb8 {[%clk 0:02:19.8]} 16. Qxb3 {[%clk 0:02:53.1]} 16... Nc5 {[%clk
0:02:18.9]} 17. Qc2 {[%clk 0:02:54.1]} 17... b6 {[%clk 0:02:18]} 18. a4 {[%clk
0:02:51.2]} 18... Bd7 {[%clk 0:02:13]} 19. Ne4 {[%clk 0:02:48.3]} 19... Ne6
{[%clk 0:02:00.4]} 20. Ba3 {[%clk 0:02:47.7]} 20... Bxa3 {[%clk 0:01:59.3]} 21.
Rxa3 {[%clk 0:02:49.6]} 21... f5 {[%clk 0:01:59.7]} 22. Nd2 {[%clk 0:02:50.8]}
22... Nc5 {[%clk 0:01:56.8]} 23. f4 {[%clk 0:02:18.5]} 23... Rbe8 {[%clk
0:01:40.3]} 24. Bd5+ {[%clk 0:02:09.5]} 24... Kh8 {[%clk 0:01:40.4]} 25. fxe5
{[%clk 0:02:10.2]} 25... Qxe5 {[%clk 0:01:40.2]} 26. Rf2 {[%clk 0:02:10.9]}
26... f4 {[%clk 0:01:36.9]} 27. Nf3 {[%clk 0:02:10.5]} 27... Qe3 {[%clk
0:01:34.7]} 28. a5 {[%clk 0:01:58]} 28... fxg3 {[%clk 0:01:34.5]} 29. hxg3
{[%clk 0:01:59.9]} 29... Rf6 {[%clk 0:01:25.8]} 30. axb6 {[%clk 0:01:56.4]}
30... axb6 {[%clk 0:01:25.7]} 31. Qd2 {[%clk 0:01:55]} 31... Qe7 {[%clk
0:00:43.4]} 32. Ra7 {[%clk 0:01:44.6]} 32... Ref8 {[%clk 0:00:44.1]} 33. Qg5
{[%clk 0:01:17.4]} 33... Qd6 {[%clk 0:00:44]} 34. Rh2 {[%clk 0:01:12.9]} 34...
Rg6 {[%clk 0:00:36.6]} 35. Qh4 {[%clk 0:01:01.5]} 35... Rh6 {[%clk 0:00:19.9]}
36. Qxd4 {[%clk 0:00:54.6]} 36... Qxg3+ {[%clk 0:00:18.2]} 37. Rg2 {[%clk
0:00:55.8]} 37... Rh1+ {[%clk 0:00:06.6]} 38. Kxh1 {[%clk 0:00:56.2]} 38... Qh3+
{[%clk 0:00:08]} 39. Kg1 {[%clk 0:00:56.6]} 39... Qh6 {[%clk 0:00:05.1]} 40. Ra8
{[%clk 0:00:50.4]} 40... Rxa8 {[%clk 0:00:05.7]} 41. Bxa8 {[%clk 0:00:52.3]}
41... Bh3 {[%clk 0:00:06.8]} 42. Qd8# {[%clk 0:00:52]} 1-0